Cogmind - Beta 14 @@@ ROGUE MODE // 2025.03.14 @ 19:48:31 Player: Lava Result: Destroyed by as-25625 with Assembled Heavy Rifle Performance ------------- Evolutions (0) 0 Regions Visited (4) 800 Robots Destroyed (19) 95 Value Destroyed (216) 216 Prototype IDs (25) 500 Alien Tech Used (0) 0 Bonus (300) 300 TOTAL SCORE: 1911 Bonus ------- Aligned with FarCom 300 Cogmind --------- Core Integrity 0/250 Matter 265/300 Energy 125/125 System Corruption 0% Temperature Cool (34) Movement Treading (160) Location -9/Mines Parts ------- > --- POWER (1) -------- Light Ion Engine > --- PROPULSION (2) --- Light Treads Light Treads > --- UTILITY (2) ------ Small Storage Unit Hacking Suite > --- WEAPON (2) ------- Beamcaster > --- INVENTORY (8) ---- High-capacity Matter Pod (200) Signal Interpreter Terrain Scanner Cloak of Protection Peak State ------------ > --- POWER ------------ Light Ion Engine > --- PROPULSION ------- Light Treads Light Treads > --- UTILITY ---------- Small Storage Unit Hacking Suite > --- WEAPON ----------- Beamcaster > --- INVENTORY -------- High-capacity Matter Pod Signal Interpreter Terrain Scanner Cloak of Protection [Rating: 13] Favorites ----------- Power Ion Engine Engine Ion Engine Propulsion Light Treads Treads Light Treads Leg Aluminum Leg Utility Small Storage Unit Device Sensor Array Storage Small Storage Unit Hackware Hacking Suite Weapon Light Assault Rifle Energy Gun Small Laser Ballistic Gun Light Assault Rifle Build | -11 -10 -10 -10 -9 ------- Run | Yrd Mat Min Exi Min Slots Evolved . | . . . . . Power . | . . . . . Propulsion . | . . . . . Utility . | . . . . . Weapon . | . . . . . Parts Attached 16 | 9 1 . 1 5 Power 2 | 1 . . . 1 Engine 2 | 1 . . . 1 Core . | . . . . . Reactor . | . . . . . Propulsion 6 | 4 . . . 2 Treads 4 | 2 . . . 2 Leg 2 | 2 . . . . Wheel . | . . . . . Hover . | . . . . . Flight . | . . . . . Utility 3 | 1 1 . 1 . Device 1 | . 1 . . . Storage 1 | 1 . . . . Processor . | . . . . . Hackware 1 | . . . 1 . Protection . | . . . . . Artifact . | . . . . . Weapon 5 | 3 . . . 2 Energy Gun 2 | 1 . . . 1 Energy Cannon . | . . . . . Ballistic Gun 3 | 2 . . . 1 Ballistic Cannon . | . . . . . Launcher . | . . . . . Special Weapon . | . . . . . Impact Weapon . | . . . . . Slashing Weapon . | . . . . . Piercing Weapon . | . . . . . Special Melee Weapon . | . . . . . Unidentified Prototypes . | . . . . . Parts Lost 6 | . . . . 6 Power 1 | . . . . 1 Propulsion 2 | . . . . 2 Utility . | . . . . . Weapon 3 | . . . . 3 Highest Loss Streak 6 | . . . . 6 To Critical Strikes . | . . . . . Average Slot Usage (%) 96 | . 96 100 100 95 Engine 13 | . 14 14 14 13 Treads 27 | . 28 28 28 27 Device 7 | . 10 14 7 . Storage 14 | . 14 14 14 14 Hackware 4 | . . . 6 14 Ballistic Gun 27 | . 28 28 28 24 Peak Build Rating 13 | 6 8 8 10 13 Average Rating 7 | 4 6 8 8 9 On Entrance 6 | . 6 8 8 10 Naked Turns . | . . . . . Heaviest Build 14 | 13 14 14 14 13 Greatest Support 40 | 40 40 40 40 40 Greatest Overweight (x) 1 | 1 . . . . Average Overweight (x) . | . . . . . Largest Inventory Capacity 8 | 8 8 8 8 8 Average Capacity 7 | 6 8 8 8 8 Most Carried 8 | 6 8 8 8 8 Average Carried 7 | 4 7 8 7 7 Final Capacity 8 | 8 8 8 8 8 Final Carried 8 | 6 8 8 8 4 Class Distribution -------------------- 100% | Mutant Dominant Class ---------------- Mutant | -10/Materials Mutant | -10/Mines Mutant | -10/Exiles Mutant | -9/Mines Resources | -11 -10 -10 -10 -9 ----------- Run | Yrd Mat Min Exi Min Matter Collected 701 | 269 429 . . 3 Remotely . | . . . . . Salvage Created 390 | . 382 . . 8 Parts 37 | . 37 . . . Haulers Intercepted 1 | . 1 . . . Recyclers Shooed . | . . . . . Parts Field Recycled . | . . . . . Retrieved Matter . | . . . . . Parts Self-Destructed . | . . . . . Prevented . | . . . . . Kills | -11 -10 -10 -10 -9 ------- Run | Yrd Mat Min Exi Min Combat Hostiles Destroyed 13 | . 12 . . 1 Guns 13 | . 12 . . 1 Classes Destroyed 8 | . 7 . . 1 Worker 1 | . 1 . . . Builder 1 | . 1 . . . Hauler 1 | . 1 . . . Operator 1 | . 1 . . . Watcher 3 | . 3 . . . Swarmer 11 | . 11 . . . Grunt 1 | . 1 . . . Assembled 1 | . . . . 1 Best Kill Streak 6 | . 6 . . 1 Combat Bots Only 5 | . 5 . . 1 Max Kills in Single Turn 1 | . 1 . . 1 Gunslinging . | . . . . . Exploded . | . . . . . Melee . | . . . . . Uniques/NPCs Destroyed . | . . . . . Combat | -11 -10 -10 -10 -9 -------- Run | Yrd Mat Min Exi Min Hostile Shots Fired 104 | . 54 . . 50 Missed 36 | . 17 . . 19 Damage Taken 1068 | . 324 . . 744 Core 257 | . 73 . . 184 Absorbed by Shields . | . . . . . Core Remaining (%) 100 | 100 . . . . Volleys Fired 55 | . 52 . . 3 Largest 2 | . 2 . . 2 Hottest 75 | . 40 . . 75 Shots Fired 109 | . 104 . . 5 Gun 109 | . 104 . . 5 Cannon . | . . . . . Launcher . | . . . . . Special . | . . . . . Kinetic 108 | . 104 . . 4 Thermal 1 | . . . . 1 Explosive . | . . . . . Electromagnetic . | . . . . . Robot Hit Streak 8 | . 8 . . 3 Robot Miss Streak 5 | . 5 . . 1 Penetration Max . | . . . . . Secondary Targets 1 | . 1 . . . Max Gunslinging Chain 1 | . 1 . . . Shots Hit Robots 61 | . 58 . . 3 Core Hits 27 | . 26 . . 1 Critical Kills . | . . . . . Critical Parts Destroyed . | . . . . . Critical Strikes 1 | . . . . 1 Burn 1 | . . . . 1 Melee Attacks . | . . . . . Impact . | . . . . . Slashing . | . . . . . Piercing . | . . . . . Sneak Attacks . | . . . . . Combat Hostiles . | . . . . . Follow-up Attacks . | . . . . . Damage Inflicted 664 | . 621 . . 43 Guns 648 | . 609 . . 39 Cannons . | . . . . . Explosions . | . . . . . Melee . | . . . . . Ramming 16 | . 12 . . 4 Kinetic 628 | . 609 . . 19 Thermal 20 | . . . . 20 Explosive . | . . . . . Electromagnetic . | . . . . . Impact . | . . . . . Slashing . | . . . . . Piercing . | . . . . . Highest Corruption . | . . . . . Average Corruption . | . . . . . Corruption Purged . | . . . . . Corruption Blocked . | . . . . . Overload Shots . | . . . . . Overflow Damage . | . . . . . Projectiles . | . . . . . Explosions . | . . . . . Melee . | . . . . . Knockbacks . | . . . . . Impact . | . . . . . Kinetic . | . . . . . Secondary . | . . . . . Self-Inflicted Damage . | . . . . . Shots . | . . . . . Rammed 5 | . 3 . . 2 Targets Rammed 5 | . 3 . . 2 Kicked . | . . . . . Crushed . | . . . . . Highest Temperature 34 | . 6 . . 34 Average Temperature 10 | . 6 . . 25 Received Heat Transfer 60 | . 60 . . . Siege Activations . | . . . . . Robots Corrupted . | . . . . . Combat Hostiles . | . . . . . Parts Fried . | . . . . . Impact Corruptions . | . . . . . Robots Melted . | . . . . . Combat Hostiles . | . . . . . Parts Melted . | . . . . . Heat Transferred 111 | . . . . 111 Parts Sabotaged . | . . . . . Parts Stolen . | . . . . . Parts Stripped . | . . . . . Power Chain Reactions . | . . . . . Alert | -11 -10 -10 -10 -9 ------- Run | Yrd Mat Min Exi Min Peak Influence 224 | . 224 43 . 15 Initial 43 | . . 43 . . Average 62 | . 95 43 . . Maximum Alert Level 1 | . 1 . . . Low Security (%) 85 | 100 76 100 . 100 Level 1 14 | . 23 . . . Level 2 . | . . . . . Level 3 . | . . . . . Level 4 . | . . . . . Level 5 . | . . . . . High Security . | . . . . . Max Security . | . . . . . Squads Dispatched 1 | . 1 . . . Investigation . | . . . . . Extermination . | . . . . . Reinforcement 1 | . 1 . . . Assault . | . . . . . Garrison . | . . . . . Intercept . | . . . . . Searches Triggered . | . . . . . Construction Impeded . | . . . . . Haulers Reinforced . | . . . . . Active Scanning Responses . | . . . . . Cargo Convoy Interrupts . | . . . . . Stealth | -11 -10 -10 -10 -9 --------- Run | Yrd Mat Min Exi Min Distress Signals . | . . . . . Communications Jammed . | . . . . . Distress Signals . | . . . . . Times Spotted 46 | . 22 . . 24 Peak Tracking Total 17 | . 4 . . 17 Tactical Retreats 4 | . 1 . . 3 Traps | -11 -10 -10 -10 -9 ------- Run | Yrd Mat Min Exi Min Traps Triggered . | . . . . . Indirectly . | . . . . . Trap Hack Attempts . | . . . . . Triggered . | . . . . . Disarmed . | . . . . . Reprogrammed . | . . . . . Reused . | . . . . . Traps Extracted . | . . . . . Installed . | . . . . . Triggered . | . . . . . Machines | -11 -10 -10 -10 -9 ---------- Run | Yrd Mat Min Exi Min Machines Disabled . | . . . . . Max in Single Turn . | . . . . . Machines Repaired . | . . . . . Machines Dismantled . | . . . . . Machines Sabotaged . | . . . . . Overloaded Fab Kills . | . . . . . Hacking | -11 -10 -10 -10 -9 --------- Run | Yrd Mat Min Exi Min Machines Accessed 7 | . 4 . 1 2 Terminals 6 | . 4 . . 2 Fabricators . | . . . . . Repair Stations . | . . . . . Recycling Units . | . . . . . Scanalyzers . | . . . . . Garrison Access . | . . . . . Total Hacks 15 | . 10 . 1 4 Successful 6 | . 5 . 1 . Failed 9 | . 5 . . 4 Catastrophic 2 | . 1 . . 1 Database Lockouts . | . . . . . Manual 6 | . 1 . 1 4 Terminals 14 | . 10 . . 4 Fabricators . | . . . . . Repair Stations . | . . . . . Recycling Units . | . . . . . Scanalyzers . | . . . . . Garrison Access . | . . . . . Terminal Hacks 6 | . 5 . 1 . Prototype ID Bank 1 | . 1 . . . Emergency Access Points 1 | . 1 . . . Dispatch Records 1 | . 1 . . . Hauler Manifests 1 | . 1 . . . Registered Components 1 | . 1 . . . Derelict Proto ID Bank 1 | . . . 1 . Fabricator Hacks . | . . . . . Repair Station Hacks . | . . . . . Recycling Unit Hacks . | . . . . . Scanalyzer . | . . . . . Garrison Access Hacks . | . . . . . Unauthorized Hacks . | . . . . . Terminals . | . . . . . Fabricators . | . . . . . Repair Stations . | . . . . . Recycling Units . | . . . . . Scanalyzers . | . . . . . Garrison Access . | . . . . . Data Cores Recovered . | . . . . . Used . | . . . . . Hacking Detections 6 | . 4 . . 2 Full Trace Events . | . . . . . Feedback Events . | . . . . . Feedback Blocked . | . . . . . Robot Schematics Acquired . | . . . . . Robots Built . | . . . . . Authchips . | . . . . . Time . | . . . . . Total Robot Build Rating . | . . . . . Part Schematics Acquired . | . . . . . Parts Built . | . . . . . Authchips . | . . . . . Time . | . . . . . Total Part Build Rating . | . . . . . Parts Repaired . | . . . . . Time . | . . . . . Parts Recycled . | . . . . . Recycled Matter . | . . . . . Retrieved Matter . | . . . . . Retrieved Components . | . . . . . Parts Scanalyzed . | . . . . . Part Schematics Acquired . | . . . . . Parts Damaged . | . . . . . Bothacking | -11 -10 -10 -10 -9 ------------ Run | Yrd Mat Min Exi Min Used RIF Installer . | . . . . . Robots Hacked . | . . . . . Non-combat . | . . . . . Combat . | . . . . . Robot Hacks Applied . | . . . . . Relay Couplers Released . | . . . . . Fabnet Peak Effective % . | . . . . . Robots Rewired . | . . . . . Allies Hacked . | . . . . . Hacks Repelled . | . . . . . Allies | -11 -10 -10 -10 -9 -------- Run | Yrd Mat Min Exi Min Total Allies . | . . . . . Largest Group . | . . . . . Highest-Rated Group . | . . . . . Highest-Rated Ally . | . . . . . Total Orders . | . . . . . Ally Attacks . | . . . . . Total Damage . | . . . . . Kills . | . . . . . Allies Corrupted . | . . . . . Allies Melted . | . . . . . Intel | -11 -10 -10 -10 -9 ------- Run | Yrd Mat Min Exi Min Robot Analysis Total . | . . . . . Derelict Logs Recovered 1 | . . . . 1 Drone Launches . | . . . . . Drone Recoveries . | . . . . . Exploration | -11 -10 -10 -10 -9 ------------- Run | Yrd Mat Min Exi Min Turns Passed 2369 | 96 1264 114 345 550 Spaces Moved 1339 | 65 654 72 215 333 Core 22 | 22 . . . . Treads 1308 | 34 654 72 215 333 Legs 9 | 9 . . . . Wheels . | . . . . . Hover . | . . . . . Flight . | . . . . . Fastest Speed 50 | 50 160 160 160 160 Average Speed 157 | 118 160 160 160 160 Slowest Speed 160 | 160 160 160 160 160 Overloaded Moves . | . . . . . Propulsion Burnouts . | . . . . . Robots Hopped . | . . . . . Cave-ins Triggered . | . . . . . Exploration Rate (%) 43 | 4 74 22 42 77 Regions Visited 4 Branch Regions 3 Pre-discovered Areas . | . . . . . Known Exits Taken . | . . . . . Unknown Exits Taken 4 | 1 1 1 1 . Scrap Searched . | . . . . . Spaces Dug . | . . . . . Terrain Destroyed . | . . . . . Melee . | . . . . . Projectile . | . . . . . AOE . | . . . . . Terrain Rammed . | . . . . . Walls Destroyed . | . . . . . Machines Disabled . | . . . . . Actions | -11 -10 -10 -10 -9 --------- Run | Yrd Mat Min Exi Min Total 1491 | 80 779 71 217 344 Wait 54 | . 54 . . . Move 1335 | 64 653 71 214 333 Hop . | . . . . . Pick Up 18 | 7 9 . 1 1 Fast Attach 6 | 5 1 . . . Attach 7 | 1 . . 1 5 Detach . | . . . . . Swap 3 | 3 . . . . Drop 8 | . 7 . 1 . Fire 55 | . 52 . . 3 Melee . | . . . . . Ram . | . . . . . Kick . | . . . . . Crush 5 | . 3 . . 2 Escape Stasis . | . . . . . Rewire . | . . . . . Trap . | . . . . . Miscellaneous . | . . . . . Route ------- -11/Scrapyard -10/Materials (discovered 3 exits: [*Mat x2] / [*Min]) -10/Mines -10/Exiles -9/Mines (discovered 2 exits: [*Mat x2]) History --------- Turn | Location | Event 4 | -11/Scrapyard | Discovered new exit (range 14) 97 | -11/Scrapyard | Entered Materials 193 | -10/Materials | Discovered new exit (range 15) 312 | -10/Materials | Build established: Mutant 796 | -10/Materials | Discovered new exit (range 16) 970 | -10/Materials | Discovered new exit (range 14) 1361 | -10/Materials | Entered Mines 1467 | -10/Mines | Deemed a non-threat by the Exiles lab entrance 1467 | -10/Mines | Discovered new exit (range 5) 1475 | -10/Mines | Entered Exiles 1515 | -10/Exiles | Met 8R-AWN 1541 | -10/Exiles | Met EX-HEX 1587 | -10/Exiles | Met EX-BIN 1608 | -10/Exiles | Aligned with FarCom system 1610 | -10/Exiles | Given EX-Vault access code 1648 | -10/Exiles | Opened EX-Vault 1658 | -10/Exiles | Found Cloak of Protection 1692 | -10/Exiles | Warned to stay clear of 0b10 Research branches 1800 | -10/Exiles | Discovered new exit (range 14) 1820 | -10/Exiles | Left Exiles lab with Cloak of Protection 1820 | -10/Exiles | Entered Mines 1902 | -9/Mines | Discovered new exit (range 15) 1904 | -9/Mines | Met a Derelict bent on vengeance 1904 | -9/Mines | Discovered new exit (range 4) 2266 | -9/Mines | Assembled infested the area 2271 | -9/Mines | Assisted by a Guerilla fighting off Assembled 2278 | -9/Mines | Learned Materials emergency access door positions 2324 | -9/Mines | Core integrity fell below 50% 2342 | -9/Mines | Core integrity fell below 20% 2370 | -9/Mines | Lost 6 parts (1p2n3w) 2370 | -9/Mines | Destroyed by as-25625 with Assembled Heavy Rifle Last Messages --------------- R-06 Scavenger destroyed. T-07 Excavator destroyed. Destroyed Asb. Hover Unit. as-77080 destroyed. Assault Rifle destroyed. Lgt. Assault Rifle destroyed. Acquired 3 matter. Lgt. Treads destroyed. as-03398 destroyed. as-50036 destroyed. The unstable cave ceiling collapses. as-25869 destroyed. Ion Engine destroyed. The unstable cave ceiling collapses. Lgt. Treads destroyed. Lgt. Assault Rifle destroyed. D-53 Grenadier destroyed. The unstable cave ceiling collapses. Acquired Beamcaster. as-97060 suffers critical hit (Burn). Map ----- +----------------------------------------------------+ | ## #### #### ##??## ##??? | | # ### ## #??# #??? | | ### #### #???? | | ### ## #????? | | # #?# #????? | | ### #?# #????? | | ??## ##?# =! ### #????? | | #??## ##??## ! ##?## #????? | | #??## ##???# ##?## ##????? | | #???## ##???## ##?#######?????? | | #????# ##????# # #?????????????? | | #????# #????## #??????????????? | | #????# #????# | ##?????????????? | | ##????# ####?## #?????????????? | | #?????# ##????????????? | | ??????## % # ####?????????? | | ????????? ### ##????????? | | ???????? # ## #????????? | | ??????? # # #????????? | | ??????# # # ##???????? | | ??????## ## #???????? | | ???????# # a #???????? | | ???????#?##### % = ##???????? | | ?????????????## ## ######????????? | | ??????????????# #### * ##?????????????? | | ??????##??????# ### =%@ #??????????????? | | ?????## ????#%## =%##??????????????? | | ?????# ### ##% a#???????????????? | | ?????# = ## a #???????????????? | | ??????# !%! ##### #???????????????? | | ??????## #########???# #???????????????? | | #??????## ?????????????# #???????????????? | | ##?????????????????????# #???????????????? | | ##????????????????????# a#???????????????? | | #????????????????????# #???????????????? | | ##???????????????????# #???????????????? | | " ##??????????????????# #???????????????? | | " #??????????????????#% #???????????????? | | " #???????????????????% #???????????????? | | #??????????????????? #???????????????? | | ##???????????????????% ????????????????? | | ##??????????????????????????????????????? | | ###???????????????????????????????????????? | | ??????????????????????????????????????????? | | ??????????????????????????????????????????? | | ??????????????????????????????????????????? | | ??????????????????????????????????????????? | | ??????????????????????????????????????????? | | ??????????????????????????????????????????? | | ??????????????????????????????????????????? | +----------------------------------------------------+ Best States ------------- Heat Dissipation 25 Energy Generation 10 Energy Capacity 250 Matter Stores 300 Matter Capacity 300 Sight Range 16 Robot Scan Range 14 Terrain Scan Density 10 Evasion (%) 50 Recoil Reduction 2 Offensive Hacking 10 Item Schematics ----------------- None Robot Schematics ------------------ None Fabricated ------------ Nothing Alien Tech Used ----------------- None Achievements -------------- None Challenges ------------ None Game ------ Seed ReinforcedMeleeRailgun Manual? 0 Play Time 00:17:32 Cumulative 12.7 hours Start 2025.03.14 @ 19:33:59 End 2025.03.14 @ 19:48:31 Sessions 1 Manual Loads 0 Difficulty Rogue Special Mode None Game No. 17 Rogue 17 Adventurer 0 Explorer 0 Win Type - Total 0 Types 0/0/0/0/0/0/0/0/0 Lore% 11 Gallery% 18 Achievement% 19 Wizard Run 0 Options --------- Layout 1 ASCII 0 Keyboard 0 Movement Mouse Keybinds 0 Fullscreen 1 Font 32/SmallcapsGlow Map View 50x40 Zoom Use 0% Tactical HUD 0 Map Filters NONE Filters NONE Steam 1 RUN: e04727d9-b3e5-4870-9d84-a41b1a3ce14e